[Event "September Lviv Tradition 2019"]
[Site "Lviv"]
[Date "2019.09.23"]
[Round "1.2"]
[White "Cherniaiev, Tykhon"]
[Black "Gavrish, Leonid"]
[Result "1-0"]
[ECO "A05"]
[WhiteElo "2112"]
[BlackElo "2022"]
[Annotator "NA"]
[PlyCount "97"]
[EventDate "2019.09.23"]
[EventCountry "UKR"]
[SourceTitle "playchess.com"]
[Source "ChessBase"]
[SourceQuality "1"]
[TimeControl "5400+30"]

1. Nf3 {[%emt 0:00:00]} Nf6 {[%emt 0:00:00]} 2. g3 {[%emt 0:00:11]} g6 {[%emt 0:00:00]} 3. Bg2 {[%emt 0:00:26]} Bg7 {[%emt 0:00:00]} 4. c4 {[%emt 0:00:05]} c5 {[%emt 0:00:00]} 5. O-O {[%emt 0:00:09]} O-O {[%emt 0:00:03]} 6. d4 {[%emt 0:00:05]} cxd4 {[%emt 0:00:06]} 7. Qxd4 {[%emt 0:00:05]} Nc6 {[%emt 0:03:50]} 8. Qh4 {[%emt 0:00:07]} d6 {[%emt 0:01:08]} 9. Nc3 {[%emt 0:01:29]} Qa5 {[%emt 0:07:04]} 10. Nd5 {[%emt 0:18:18]} Be6 {[%emt 0:08:56]} 11. Bd2 {[%emt 0:01:49]} Qd8 {[%emt 0:00:22]} 12. Ng5 {[%emt 0:05:25]} Bxd5 {[%emt 0:02:21]} 13. cxd5 {[%emt 0:08:58]} Ne5 {[%emt 0:01:38]} 14. Qb4 {[%emt 0:01:43]} h6 {[%emt 0:11:22]} 15. Nh3 {[%emt 0:02:27]} Qd7 {[%emt 0:04:46]} 16. Nf4 {[%emt 0:01:25]} a5 {[%emt 0:05:03]} 17. Qb3 {[%emt 0:05:49]} b5 {[%emt 0:02:36]} 18. Bc3 {[%emt 0:06:05]} a4 {[%emt 0:08:23]} 19. Qd1 {[%emt 0:01:17]} Nc4 {[%emt 0:03:49]} 20. b3 {[%emt 0:00:33]} Nb6 {[%emt 0:06:16]} 21. Bd4 {[%emt 0:04:24]} Qb7 {[%emt 0:02:36]} 22. e4 {[%emt 0:00:59]} Nfd7 {[%emt 0:07:08]} 23. Bxg7 {[%emt 0:00:55]} Kxg7 {[%emt 0:00:07]} 24. Qd4+ {[%emt 0:00:15]} Kh7 {[%emt 0:03:56]} 25. Nd3 {[%emt 0:00:31]} axb3 {[%emt 0:03:17]} 26. axb3 {[%emt 0:00:09]} Rxa1 {[%emt 0:02:27]} 27. Rxa1 {[%emt 0:00:42]} Ra8 {[%emt 0:00:16]} 28. Rd1 {[%emt 0:03:42]} Qa7 {[%emt 0:05:48]} 29. e5 {[%emt 0:06:53]} Nxe5 {[%emt 0:03:06]} 30. Nxe5 {[%emt 0:00:12]} dxe5 {[%emt 0:00:05]} 31. Qxe5 {[%emt 0:00:48]} Rd8 {[%emt 0:01:21]} 32. Rc1 {[%emt 0:01:18]} Rd6 {[%emt 0:03:09]} 33. h4 {[%emt 0:04:04]} Qd7 {[%emt 0:01:33]} 34. Rc5 {[%emt 0:00:49]} f6 {[%emt 0:02:24]} 35. Qd4 {[%emt 0:00:44]} e5 {[%emt 0:01:02]} 36. dxe6 {[%emt 0:00:32]} Qxe6 {[%emt 0:01:06]} 37. Qb4 {[%emt 0:00:43]} Rd1+ {[%emt 0:00:37]} 38. Kh2 {[%emt 0:00:07]} h5 {[%emt 0:00:48]} 39. Qxb5 {[%emt 0:00:53]} Nd7 {[%emt 0:00:21]} 40. Rxh5+ {[%emt 0:00:08]} Kg7 {[%emt 0:00:26]} 41. Rd5 {[%emt 0:00:26]} Rxd5 {[%emt 0:00:33]} 42. Qxd5 {[%emt 0:00:15]} Qe7 {[%emt 0:00:11]} 43. Qb7 {[%emt 0:00:08]} Kh6 {[%emt 0:00:19]} 44. Bc6 {[%emt 0:00:15]} Qc5 {[%emt 0:00:58]} 45. Qxd7 {[%emt 0:00:11]} Qxf2+ {[%emt 0:00:06]} 46. Bg2 {[%emt 0:00:05]} Qb2 {[%emt 0:00:12]} 47. Qd3 {[%emt 0:00:27]} f5 {[%emt 0:00:14]} 48. Qc4 {[%emt 0:00:12]} Kh5 {[%emt 0:01:02]} 49. Qf4 {[%emt 0:00:09]} 1-0

[Event "September Lviv Tradition 2019"]
[Site "Lviv"]
[Date "2019.09.23"]
[Round "1.3"]
[White "Vakulenko, Oleksandr"]
[Black "Prydun, Andriy"]
[Result "1-0"]
[ECO "A67"]
[WhiteElo "2167"]
[BlackElo "2273"]
[Annotator "NA"]
[PlyCount "49"]
[EventDate "2019.09.23"]
[EventCountry "UKR"]
[SourceTitle "playchess.com"]
[Source "ChessBase"]
[SourceQuality "1"]
[TimeControl "5400+30"]

1. d4 {[%emt 0:00:00]} c5 {[%emt 0:00:07]} 2. d5 {[%emt 0:00:00]} Nf6 {[%emt 0:00:10]} 3. c4 {[%emt 0:00:00]} e6 {[%emt 0:00:06]} 4. Nc3 {[%emt 0:00:05]} exd5 {[%emt 0:00:12]} 5. cxd5 {[%emt 0:00:06]} d6 {[%emt 0:00:07]} 6. e4 {[%emt 0:00:07]} g6 {[%emt 0:00:09]} 7. f4 {[%emt 0:00:17]} Bg7 {[%emt 0:01:27]} 8. Bb5+ {[%emt 0:00:16]} Nfd7 {[%emt 0:01:55]} 9. a4 {[%emt 0:00:19]} O-O {[%emt 0:03:57]} 10. Nf3 {[%emt 0:01:22]} Nf6 {[%emt 0:10:13]} 11. O-O {[%emt 0:03:43]} Nbd7 {[%emt 0:21:45]} 12. Re1 {[%emt 0:15:19]} a6 {[%emt 0:09:55]} 13. Bf1 {[%emt 0:15:22]} Re8 {[%emt 0:10:57]} 14. e5 {[%emt 0:09:05]} dxe5 {[%emt 0:06:57]} 15. fxe5 {[%emt 0:04:36]} Ng4 {[%emt 0:00:12]} 16. e6 {[%emt 0:01:25]} fxe6 {[%emt 0:07:45]} 17. dxe6 {[%emt 0:02:11]} Nde5 {[%emt 0:01:15]} 18. Qxd8 {[%emt 0:13:09]} Rxd8 {[%emt 0:00:01]} 19. e7 {[%emt 0:03:28]} Re8 {[%emt 0:00:00]} 20. Nd5 {[%emt 0:00:31]} Bd7 {[%emt 0:19:08]} 21. Bf4 {[%emt 0:21:56]} Bc6 {[%emt 0:00:17]} 22. Rad1 {[%emt 0:03:28]} Bxa4 {[%emt 0:03:50]} 23. Rd2 {[%emt 0:01:17]} Nc6 24. Nc7 Bb3 25. Bc4+ 1-0

[Event "September Lviv Tradition 2019"]
[Site "Lviv"]
[Date "2019.09.24"]
[Round "2.1"]
[White "Goikhman, Valentin"]
[Black "Sevostianov, Pavel"]
[Result "1-0"]
[ECO "E21"]
[WhiteElo "2295"]
[BlackElo "2260"]
[Annotator "NA"]
[PlyCount "85"]
[EventDate "2019.09.23"]
[EventCountry "UKR"]
[SourceTitle "playchess.com"]
[Source "ChessBase"]
[SourceQuality "1"]
[TimeControl "5400+30"]

1. d4 {[%emt 0:00:00]} Nf6 {[%emt 0:00:29]} 2. c4 {[%emt 0:00:00]} e6 {[%emt 0:00:57]} 3. Nf3 {[%emt 0:00:31]} Bb4+ {[%emt 0:03:19]} 4. Nc3 {[%emt 0:04:28]} Ne4 {[%emt 0:01:54]} 5. Qb3 {[%emt 0:07:03]} Bxc3+ {[%emt 0:06:11]} 6. bxc3 {[%emt 0:00:11]} O-O {[%emt 0:00:54]} 7. e3 {[%emt 0:13:25]} b6 {[%emt 0:00:47]} 8. Bd3 {[%emt 0:01:27]} f5 {[%emt 0:03:54]} 9. O-O {[%emt 0:03:02]} Bb7 {[%emt 0:04:25]} 10. Ne1 {[%emt 0:12:40]} Nc6 {[%emt 0:01:54]} 11. f3 {[%emt 0:05:19]} Na5 {[%emt 0:01:12]} 12. Qb1 {[%emt 0:05:29]} Nf6 {[%emt 0:02:08]} 13. c5 {[%emt 0:05:05]} Rb8 {[%emt 0:08:41]} 14. cxb6 {[%emt 0:00:48]} axb6 {[%emt 0:00:10]} 15. c4 {[%emt 0:10:45]} Ba6 {[%emt 0:02:51]} 16. Qc2 {[%emt 0:02:16]} d6 {[%emt 0:08:47]} 17. Bd2 {[%emt 0:03:32]} Qd7 {[%emt 0:00:15]} 18. Rd1 {[%emt 0:12:10]} Qc6 {[%emt 0:00:59]} 19. Rc1 {[%emt 0:00:16]} Ra8 {[%emt 0:03:50]} 20. Rf2 {[%emt 0:05:52]} h6 {[%emt 0:01:29]} 21. h3 {[%emt 0:02:40]} Bb7 {[%emt 0:06:00]} 22. Bb4 {[%emt 0:01:37]} Qe8 {[%emt 0:02:13]} 23. Bf1 {[%emt 0:02:11]} Nc6 {[%emt 0:03:05]} 24. Bc3 {[%emt 0:00:20]} Ne7 {[%emt 0:00:58]} 25. Nd3 {[%emt 0:00:35]} Ng6 {[%emt 0:00:51]} 26. Nf4 {[%emt 0:00:42]} Nh4 {[%emt 0:00:17]} 27. d5 {[%emt 0:00:11]} exd5 {[%emt 0:01:07]} 28. Bxf6 Rxf6 {[%emt 0:00:19]} 29. cxd5 {[%emt 0:01:19]} Qxe3 {[%emt 0:03:40]} 30. Qd2 {[%emt 0:00:08]} Qxd2 {[%emt 0:05:02]} 31. Rxd2 {[%emt 0:00:38]} Rf7 {[%emt 0:00:28]} 32. Ne6 {[%emt 0:00:43]} Rc8 {[%emt 0:03:16]} 33. Rdc2 {[%emt 0:00:35]} Bxd5 {[%emt 0:04:13]} 34. Nf4 {[%emt 0:00:17]} Bb7 {[%emt 0:08:50]} 35. Bc4 {[%emt 0:00:09]} c6 {[%emt 0:00:06]} 36. Bxf7+ {[%emt 0:00:59]} Kxf7 {[%emt 0:00:02]} 37. Nd5 {[%emt 0:00:34]} b5 {[%emt 0:00:32]} 38. Nb6 {[%emt 0:00:29]} Re8 {[%emt 0:03:51]} 39. Rd2 {[%emt 0:00:19]} Re6 {[%emt 0:00:49]} 40. a4 {[%emt 0:00:19]} bxa4 {[%emt 0:00:37]} 41. Rc4 {[%emt 0:00:22]} c5 {[%emt 0:01:02]} 42. Rxh4 {[%emt 0:00:16]} Bc6 {[%emt 0:01:44]} 43. Rc4 1-0

[Event "September Lviv Tradition 2019"]
[Site "Lviv"]
[Date "2019.09.24"]
[Round "2.2"]
[White "Siniauski, Artsiom"]
[Black "Nester, Ihor"]
[Result "1/2-1/2"]
[ECO "C95"]
[WhiteElo "2233"]
[BlackElo "2383"]
[Annotator "NA"]
[PlyCount "62"]
[EventDate "2019.09.23"]
[EventCountry "UKR"]
[SourceTitle "playchess.com"]
[Source "ChessBase"]
[SourceQuality "1"]
[TimeControl "5400+30"]

1. e4 {[%emt 0:00:00]} e5 {[%emt 0:00:00]} 2. Nf3 {[%emt 0:00:00]} Nc6 {[%emt 0:00:00]} 3. Bb5 {[%emt 0:00:00]} a6 {[%emt 0:00:00]} 4. Ba4 {[%emt 0:00:00]} Nf6 {[%emt 0:00:00]} 5. O-O {[%emt 0:00:02]} Be7 {[%emt 0:00:00]} 6. Re1 {[%emt 0:00:07]} b5 {[%emt 0:00:00]} 7. Bb3 {[%emt 0:00:05]} d6 {[%emt 0:00:00]} 8. c3 {[%emt 0:00:09]} O-O {[%emt 0:00:00]} 9. h3 {[%emt 0:00:05]} Nb8 {[%emt 0:00:01]} 10. d4 {[%emt 0:00:10]} Nbd7 {[%emt 0:00:03]} 11. Nbd2 {[%emt 0:00:17]} Bb7 {[%emt 0:00:04]} 12. Bc2 {[%emt 0:00:31]} Re8 {[%emt 0:00:13]} 13. a4 {[%emt 0:00:16]} c5 {[%emt 0:00:03]} 14. b3 {[%emt 0:03:15]} cxd4 {[%emt 0:06:03]} 15. cxd4 {[%emt 0:00:17]} Bf8 $14 {[%emt 0:00:28]} 16. d5 {[%emt 0:03:39]} g6 {[%emt 0:14:08]} 17. axb5 {[%emt 0:13:05]} axb5 {[%emt 0:00:08]} 18. Rxa8 {[%emt 0:00:09]} Qxa8 {[%emt 0:00:05]} 19. b4 {[%emt 0:00:08]} Nb6 {[%emt 0:03:55]} 20. Qe2 {[%emt 0:06:12]} Ba6 {[%emt 0:00:34]} 21. Bd3 {[%emt 0:02:10]} Na4 {[%emt 0:06:46]} 22. Nb3 {[%emt 0:01:56]} Qb8 {[%emt 0:08:52]} 23. Na5 {[%emt 0:03:16]} Bg7 {[%emt 0:02:59]} 24. Bg5 {[%emt 0:16:55]} h6 {[%emt 0:09:31]} 25. Bxf6 {[%emt 0:01:45]} Bxf6 {[%emt 0:00:02]} 26. Rc1 {[%emt 0:00:18]} Rc8 {[%emt 0:05:25]} 27. Qd2 {[%emt 0:02:16]} Kg7 {[%emt 0:02:05]} 28. Rc2 {[%emt 0:01:16]} Rxc2 {[%emt 0:10:48]} 29. Qxc2 {[%emt 0:00:21]} Qb6 {[%emt 0:01:08]} 30. Nc6 {[%emt 0:08:42]} Qc7 {[%emt 0:05:37]} 31. Qe2 {[%emt 0:06:15]} Qb6 {[%emt 0:00:57]} 1/2-1/2

[Event "September Lviv Tradition 2019"]
[Site "Lviv"]
[Date "2019.09.24"]
[Round "2.3"]
[White "Prydun, Andriy"]
[Black "Frolov, Artur"]
[Result "0-1"]
[ECO "A46"]
[WhiteElo "2273"]
[BlackElo "2425"]
[Annotator "NA"]
[PlyCount "66"]
[EventDate "2019.09.23"]
[EventCountry "UKR"]
[SourceTitle "playchess.com"]
[Source "ChessBase"]
[SourceQuality "1"]
[TimeControl "5400+30"]

1. d4 {[%emt 0:02:55]} Nf6 {[%emt 0:00:00]} 2. Nf3 {[%emt 0:00:30]} d5 {[%emt 0:00:04]} 3. c3 {[%emt 0:00:13]} g6 {[%emt 0:01:00]} 4. Bg5 {[%emt 0:00:07]} Bg7 {[%emt 0:00:03]} 5. e3 {[%emt 0:00:26]} Ne4 {[%emt 0:02:29]} 6. Bf4 {[%emt 0:00:37]} c5 {[%emt 0:02:37]} 7. Nbd2 {[%emt 0:00:37]} Nxd2 {[%emt 0:08:34]} 8. Qxd2 {[%emt 0:00:12]} cxd4 {[%emt 0:00:05]} 9. exd4 {[%emt 0:02:48]} Nc6 {[%emt 0:00:03]} 10. Bb5 {[%emt 0:03:53]} Qb6 $14 {[%emt 0:04:16]} 11. Bxc6+ {[%emt 0:06:13]} bxc6 {[%emt 0:03:34]} 12. O-O {[%emt 0:02:38]} O-O {[%emt 0:12:12]} 13. Rfe1 {[%emt 0:06:03]} Re8 {[%emt 0:03:08]} 14. Re3 {[%emt 0:23:45]} c5 {[%emt 0:04:50]} 15. Rae1 {[%emt 0:00:45]} e6 {[%emt 0:01:10]} 16. h4 {[%emt 0:14:49]} h5 {[%emt 0:11:17]} 17. Ne5 {[%emt 0:05:44]} a5 {[%emt 0:06:02]} 18. Rg3 {[%emt 0:01:14]} cxd4 {[%emt 0:01:35]} 19. cxd4 {[%emt 0:01:01]} Qb4 {[%emt 0:02:25]} 20. Qd1 {[%emt 0:02:04]} Qxb2 {[%emt 0:06:27]} 21. Nxf7 {[%emt 0:19:58]} Rf8 {[%emt 0:16:32]} 22. Nh6+ {[%emt 0:02:01]} Kh7 {[%emt 0:00:05]} 23. Qd3 {[%emt 0:00:47]} Rf6 {[%emt 0:00:20]} 24. Rxg6 {[%emt 0:02:06]} Rxg6 {[%emt 0:01:17]} 25. Nf7 {[%emt 0:00:01]} Bxd4 {[%emt 0:01:28]} 26. Re2 {[%emt 0:01:00]} Qa1+ {[%emt 0:08:01]} 27. Kh2 Ba6 28. Ng5+ {[%emt 0:00:41]} Kg7 {[%emt 0:00:06]} 29. Nxe6+ {[%emt 0:00:51]} Rxe6 {[%emt 0:00:29]} 30. Qf5 {[%emt 0:00:29]} Rxe2 {[%emt 0:02:38]} 31. Qg5+ {[%emt 0:00:02]} Kf8 {[%emt 0:00:45]} 32. Qf5+ {[%emt 0:00:13]} Bf6 {[%emt 0:00:44]} 33. Bh6+ {[%emt 0:00:51]} Ke7 {[%emt 0:00:32]} 0-1

[Event "September Lviv Tradition 2019"]
[Site "Lviv"]
[Date "2019.09.24"]
[Round "2.4"]
[White "Gavrish, Leonid"]
[Black "Vakulenko, Oleksandr"]
[Result "0-1"]
[ECO "D31"]
[WhiteElo "2022"]
[BlackElo "2167"]
[Annotator "NA"]
[PlyCount "66"]
[EventDate "2019.09.23"]
[EventCountry "UKR"]
[SourceTitle "playchess.com"]
[Source "ChessBase"]
[SourceQuality "1"]
[TimeControl "5400+30"]

1. d4 {[%emt 0:00:00]} d5 {[%emt 0:00:00]} 2. c4 {[%emt 0:00:00]} e6 {[%emt 0:00:00]} 3. Nc3 {[%emt 0:00:00]} c6 {[%emt 0:00:00]} 4. e4 {[%emt 0:00:00]} dxe4 {[%emt 0:01:27]} 5. Nxe4 {[%emt 0:00:01]} Bb4+ {[%emt 0:00:10]} 6. Bd2 {[%emt 0:00:05]} Qxd4 {[%emt 0:00:14]} 7. Bxb4 {[%emt 0:00:07]} Qxe4+ {[%emt 0:00:06]} 8. Be2 {[%emt 0:00:08]} c5 {[%emt 0:01:54]} 9. Bxc5 {[%emt 0:00:36]} Qxg2 {[%emt 0:00:11]} 10. Qd6 {[%emt 0:08:44]} Nd7 {[%emt 0:02:41]} 11. Bf3 {[%emt 0:02:11]} Qg5 {[%emt 0:00:20]} 12. Bd4 {[%emt 0:01:19]} e5 {[%emt 0:10:36]} 13. Bc3 {[%emt 0:02:36]} Ne7 {[%emt 0:02:29]} 14. Ne2 {[%emt 0:06:50]} Nf5 {[%emt 0:25:23]} 15. Qc7 {[%emt 0:15:04]} O-O {[%emt 0:06:15]} 16. Rd1 {[%emt 0:09:42]} Nh4 {[%emt 0:05:01]} 17. Be4 {[%emt 0:07:22]} Qe7 {[%emt 0:25:44]} 18. Bxb7 {[%emt 0:19:40]} Bxb7 {[%emt 0:00:50]} 19. Qxb7 {[%emt 0:05:14]} Rfd8 {[%emt 0:05:12]} 20. Ba5 {[%emt 0:03:03]} e4 {[%emt 0:05:02]} 21. Bxd8 {[%emt 0:03:45]} Rxd8 {[%emt 0:00:05]} 22. Ng3 {[%emt 0:06:02]} e3 {[%emt 0:01:38]} 23. f4 {[%emt 0:01:33]} e2 {[%emt 0:01:17]} 24. Rd2 {[%emt 0:02:04]} Qe3 {[%emt 0:00:44]} 25. Rxd7 {[%emt 0:01:10]} Re8 {[%emt 0:00:51]} 26. Rd2 {[%emt 0:03:14]} Nf3+ {[%emt 0:01:02]} 27. Qxf3 {[%emt 0:00:09]} Qxf3 {[%emt 0:00:02]} 28. Rg1 {[%emt 0:01:32]} Qxf4 {[%emt 0:00:24]} 29. b3 {[%emt 0:01:08]} Qe3 {[%emt 0:01:47]} 30. Rg2 {[%emt 0:00:14]} Qxd2+ {[%emt 0:00:08]} 31. Kxd2 {[%emt 0:00:35]} e1=Q+ {[%emt 0:00:08]} 32. Kc2 {[%emt 0:00:11]} Qa1 {[%emt 0:00:35]} 33. Kd3 {[%emt 0:00:36]} Rd8+ {[%emt 0:00:17]} 0-1

[Event "September Lviv Tradition 2019"]
[Site "Lviv"]
[Date "2019.09.24"]
[Round "2.5"]
[White "Rydstrom, Tom"]
[Black "Cherniaiev, Tykhon"]
[Result "1/2-1/2"]
[ECO "C42"]
[WhiteElo "2322"]
[BlackElo "2112"]
[Annotator "NA"]
[PlyCount "115"]
[EventDate "2019.09.23"]
[EventCountry "UKR"]
[SourceTitle "playchess.com"]
[Source "ChessBase"]
[SourceQuality "1"]
[TimeControl "5400+30"]

1. e4 {[%emt 0:00:27]} e5 {[%emt 0:00:00]} 2. Nf3 {[%emt 0:01:19]} Nf6 {[%emt 0:00:00]} 3. Nxe5 {[%emt 0:00:33]} d6 {[%emt 0:00:02]} 4. Nf3 {[%emt 0:00:11]} Nxe4 {[%emt 0:00:11]} 5. Bd3 {[%emt 0:00:04]} Nf6 {[%emt 0:01:31]} 6. c3 {[%emt 0:00:47]} Be7 {[%emt 0:02:15]} 7. Bc2 {[%emt 0:01:27]} O-O {[%emt 0:00:48]} 8. d4 {[%emt 0:00:02]} d5 {[%emt 0:13:01]} 9. O-O {[%emt 0:07:42]} Bg4 {[%emt 0:05:01]} 10. Re1 {[%emt 0:00:15]} c5 {[%emt 0:01:25]} 11. dxc5 {[%emt 0:06:06]} Bxc5 {[%emt 0:00:07]} 12. Be3 {[%emt 0:27:25]} Bxe3 13. Rxe3 {[%emt 0:00:02]} Qb6 {[%emt 0:01:17]} 14. Qc1 {[%emt 0:12:49]} Nc6 {[%emt 0:00:25]} 15. Nbd2 {[%emt 0:00:04]} Rfe8 {[%emt 0:00:27]} 16. Nb3 {[%emt 0:01:45]} Rxe3 {[%emt 0:18:14]} 17. Qxe3 {[%emt 0:00:12]} Bxf3 {[%emt 0:00:16]} 18. Qxf3 {[%emt 0:01:39]} Ne5 {[%emt 0:00:41]} 19. Qf4 {[%emt 0:02:48]} Re8 {[%emt 0:00:49]} 20. h3 {[%emt 0:03:46]} Nc4 {[%emt 0:06:32]} 21. Rb1 {[%emt 0:00:05]} g6 {[%emt 0:00:28]} 22. Bd3 {[%emt 0:09:08]} Ne5 {[%emt 0:05:18]} 23. Bf1 {[%emt 0:00:19]} Kg7 {[%emt 0:04:37]} 24. Rd1 {[%emt 0:00:02]} Nc4 {[%emt 0:01:08]} 25. Nd2 {[%emt 0:12:48]} Nxd2 {[%emt 0:02:03]} 26. Qxd2 {[%emt 0:00:27]} Re4 {[%emt 0:02:41]} 27. b3 {[%emt 0:04:08]} Qc5 {[%emt 0:01:24]} 28. c4 {[%emt 0:02:29]} dxc4 {[%emt 0:00:19]} 29. Bxc4 {[%emt 0:00:06]} Re7 {[%emt 0:00:13]} 30. Qb2 {[%emt 0:01:11]} Qe5 {[%emt 0:00:53]} 31. Qxe5 {[%emt 0:01:13]} Rxe5 {[%emt 0:00:05]} 32. Kf1 {[%emt 0:00:14]} Re7 {[%emt 0:02:49]} 33. Rd8 {[%emt 0:02:36]} Rc7 {[%emt 0:00:59]} 34. Ke2 {[%emt 0:01:29]} Ne4 {[%emt 0:01:18]} 35. Ke3 {[%emt 0:00:31]} Re7 {[%emt 0:00:20]} 36. a4 {[%emt 0:01:03]} b6 {[%emt 0:02:34]} 37. f3 {[%emt 0:00:43]} Nc5+ {[%emt 0:00:44]} 38. Kd4 {[%emt 0:00:31]} Nb7 {[%emt 0:00:28]} 39. Ra8 {[%emt 0:00:19]} Nd6 {[%emt 0:01:20]} 40. Bd3 {[%emt 0:00:19]} Rc7 {[%emt 0:00:41]} 41. f4 {[%emt 0:00:51]} Nc8 {[%emt 0:00:33]} 42. b4 {[%emt 0:00:21]} Ne7 {[%emt 0:00:16]} 43. Bb5 {[%emt 0:00:36]} Nf5+ {[%emt 0:02:19]} 44. Kd5 {[%emt 0:00:21]} Re7 {[%emt 0:01:19]} 45. g4 {[%emt 0:00:14]} Ne3+ {[%emt 0:00:11]} 46. Kc6 {[%emt 0:00:48]} Nc2 {[%emt 0:00:20]} 47. Kd6 {[%emt 0:00:06]} Re6+ {[%emt 0:00:14]} 48. Kc7 {[%emt 0:00:31]} Nxb4 {[%emt 0:02:12]} 49. Rxa7 {[%emt 0:00:01]} Nd5+ {[%emt 0:01:07]} 50. Kb7 {[%emt 0:01:34]} Nxf4 {[%emt 0:00:07]} 51. Ra6 {[%emt 0:00:31]} Nd5 {[%emt 0:00:25]} 52. Bc4 {[%emt 0:00:25]} Re7+ {[%emt 0:00:05]} 53. Kb8 {[%emt 0:00:21]} Re8+ {[%emt 0:00:06]} 54. Kb7 {[%emt 0:00:02]} Re7+ {[%emt 0:00:05]} 55. Kb8 {[%emt 0:00:56]} Re8+ {[%emt 0:00:06]} 56. Kb7 {[%emt 0:00:02]} Re7+ {[%emt 0:00:05]} 57. Kb8 {[%emt 0:00:02]} Re8+ {[%emt 0:00:06]} 58. Kb7 1/2-1/2

[Event "September Lviv Tradition 2019"]
[Site "Lviv"]
[Date "2019.09.24"]
[Round "3.1"]
[White "Cherniaiev, Tykhon"]
[Black "Goikhman, Valentin"]
[Result "0-1"]
[ECO "B20"]
[WhiteElo "2112"]
[BlackElo "2295"]
[Annotator "NA"]
[PlyCount "110"]
[EventDate "2019.09.23"]
[EventCountry "UKR"]
[SourceTitle "playchess.com"]
[Source "ChessBase"]
[SourceQuality "1"]
[TimeControl "5400+30"]

1. e4 {[%emt 0:00:00]} c5 {[%emt 0:00:00]} 2. Ne2 {[%emt 0:00:03]} d6 {[%emt 0:00:54]} 3. g3 {[%emt 0:00:16]} h5 {[%emt 0:04:54]} 4. h3 {[%emt 0:01:44]} d5 {[%emt 0:08:04]} 5. Bg2 {[%emt 0:04:11]} dxe4 {[%emt 0:00:21]} 6. Bxe4 {[%emt 0:00:06]} Nf6 {[%emt 0:00:27]} 7. Bg2 {[%emt 0:00:24]} Nc6 {[%emt 0:04:03]} 8. Nbc3 {[%emt 0:05:05]} Nd4 {[%emt 0:06:13]} 9. Ne4 {[%emt 0:12:11]} Nxe4 {[%emt 0:02:21]} 10. Bxe4 {[%emt 0:00:43]} Bf5 {[%emt 0:09:27]} 11. Bxf5 {[%emt 0:04:34]} Qd5 {[%emt 0:01:19]} 12. O-O {[%emt 0:00:54]} Nf3+ {[%emt 0:03:08]} 13. Kh1 {[%emt 0:00:16]} Qxf5 {[%emt 0:02:56]} 14. Kg2 {[%emt 0:05:17]} Qe4 {[%emt 0:07:46]} 15. Nf4 {[%emt 0:00:49]} Nd4+ {[%emt 0:01:41]} 16. f3 {[%emt 0:00:34]} Qxc2 {[%emt 0:00:12]} 17. Qe1 {[%emt 0:01:05]} Qf5 {[%emt 0:06:35]} 18. Qe4 {[%emt 0:02:41]} O-O-O {[%emt 0:02:49]} 19. b3 {[%emt 0:07:16]} g5 {[%emt 0:03:02]} 20. Qxf5+ {[%emt 0:02:00]} Nxf5 {[%emt 0:00:04]} 21. Ne2 {[%emt 0:00:12]} Bg7 {[%emt 0:01:01]} 22. Rb1 {[%emt 0:01:15]} Rd3 {[%emt 0:05:21]} 23. Nc3 {[%emt 0:02:51]} Bxc3 {[%emt 0:03:22]} 24. dxc3 {[%emt 0:00:05]} Rxc3 {[%emt 0:00:32]} 25. Bxg5 {[%emt 0:03:00]} Rg8 {[%emt 0:01:16]} 26. Bf4 {[%emt 0:01:57]} Nxg3 {[%emt 0:02:06]} 27. Bxg3 {[%emt 0:01:23]} h4 {[%emt 0:00:09]} 28. Rbc1 {[%emt 0:01:07]} Rxg3+ {[%emt 0:00:05]} 29. Kh2 {[%emt 0:00:08]} Rxc1 {[%emt 0:02:29]} 30. Rxc1 {[%emt 0:00:05]} Rxf3 {[%emt 0:01:45]} 31. Rxc5+ {[%emt 0:00:06]} Kd7 {[%emt 0:00:04]} 32. Rc2 {[%emt 0:02:09]} e5 {[%emt 0:00:15]} 33. Kg2 {[%emt 0:00:19]} Rg3+ {[%emt 0:00:16]} 34. Kh2 {[%emt 0:00:07]} f5 {[%emt 0:01:06]} 35. Rd2+ {[%emt 0:00:44]} Ke6 {[%emt 0:00:22]} 36. Rc2 {[%emt 0:00:06]} e4 {[%emt 0:01:39]} 37. Rc7 {[%emt 0:00:07]} Rd3 {[%emt 0:00:26]} 38. Rxb7 {[%emt 0:00:45]} Rd2+ {[%emt 0:00:04]} 39. Kg1 {[%emt 0:00:16]} Rxa2 {[%emt 0:00:08]} 40. Rh7 {[%emt 0:00:18]} e3 {[%emt 0:00:31]} 41. Rxh4 {[%emt 0:00:17]} Ra1+ {[%emt 0:00:08]} 42. Kg2 {[%emt 0:00:06]} e2 {[%emt 0:00:06]} 43. Rh8 {[%emt 0:00:04]} e1=Q {[%emt 0:00:12]} 44. Re8+ {[%emt 0:00:07]} Kf6 {[%emt 0:00:09]} 45. Rxe1 {[%emt 0:00:04]} Rxe1 {[%emt 0:00:04]} 46. Kf3 {[%emt 0:00:08]} Rb1 {[%emt 0:00:05]} 47. Kf4 {[%emt 0:00:11]} Rxb3 {[%emt 0:00:06]} 48. h4 {[%emt 0:00:05]} Rb4+ {[%emt 0:00:07]} 49. Kg3 {[%emt 0:00:07]} a5 {[%emt 0:00:07]} 50. h5 {[%emt 0:00:03]} a4 {[%emt 0:00:04]} 51. Kf3 {[%emt 0:00:04]} a3 {[%emt 0:00:03]} 52. Kg3 {[%emt 0:00:06]} a2 {[%emt 0:00:03]} 53. Kf3 {[%emt 0:00:05]} a1=Q {[%emt 0:00:06]} 54. Kf2 {[%emt 0:00:06]} Qa2+ {[%emt 0:00:23]} 55. Kf1 {[%emt 0:00:06]} Rb1# {[%emt 0:00:03]} 0-1

[Event "September Lviv Tradition 2019"]
[Site "Lviv"]
[Date "2019.09.24"]
[Round "3.2"]
[White "Vakulenko, Oleksandr"]
[Black "Rydstrom, Tom"]
[Result "0-1"]
[ECO "E46"]
[WhiteElo "2167"]
[BlackElo "2322"]
[Annotator "NA"]
[PlyCount "74"]
[EventDate "2019.09.23"]
[EventCountry "UKR"]
[SourceTitle "playchess.com"]
[Source "ChessBase"]
[SourceQuality "1"]
[TimeControl "5400+30"]

1. d4 {[%emt 0:00:00]} Nf6 {[%emt 0:05:22]} 2. c4 {[%emt 0:00:00]} e6 {[%emt 0:00:07]} 3. Nc3 {[%emt 0:00:00]} Bb4 {[%emt 0:00:40]} 4. e3 {[%emt 0:00:00]} O-O {[%emt 0:00:16]} 5. Nge2 {[%emt 0:00:07]} c6 {[%emt 0:00:43]} 6. a3 {[%emt 0:01:45]} Ba5 {[%emt 0:00:03]} 7. c5 {[%emt 0:00:47]} d5 {[%emt 0:00:26]} 8. cxd6 {[%emt 0:00:15]} Qxd6 {[%emt 0:00:25]} 9. b4 {[%emt 0:00:17]} Bc7 {[%emt 0:00:19]} 10. g3 {[%emt 0:00:17]} Nbd7 {[%emt 0:01:42]} 11. Bg2 {[%emt 0:01:17]} e5 {[%emt 0:00:13]} 12. O-O {[%emt 0:00:57]} Re8 {[%emt 0:01:23]} 13. Qc2 {[%emt 0:03:33]} Qe7 {[%emt 0:05:35]} 14. b5 {[%emt 0:15:00]} e4 {[%emt 0:03:54]} 15. a4 {[%emt 0:04:30]} Nf8 {[%emt 0:10:41]} 16. Ba3 {[%emt 0:07:08]} Qe6 {[%emt 0:00:01]} 17. d5 {[%emt 0:05:54]} Qf5 {[%emt 0:08:51]} 18. bxc6 {[%emt 0:13:08]} bxc6 {[%emt 0:00:55]} 19. dxc6 {[%emt 0:02:49]} Qh5 {[%emt 0:02:26]} 20. Nb5 {[%emt 0:00:49]} Be5 {[%emt 0:01:36]} 21. Bb2 {[%emt 0:00:53]} Ng6 {[%emt 0:02:55]} 22. Bxe5 {[%emt 0:20:06]} Ng4 {[%emt 0:04:10]} 23. h3 {[%emt 0:07:06]} N4xe5 {[%emt 0:01:41]} 24. Nf4 {[%emt 0:09:11]} Nxf4 {[%emt 0:02:06]} 25. exf4 {[%emt 0:00:15]} Nf3+ {[%emt 0:00:15]} 26. Bxf3 {[%emt 0:00:09]} exf3 {[%emt 0:00:05]} 27. h4 {[%emt 0:00:23]} Bh3 {[%emt 0:36:39]} 28. Rfe1 {[%emt 0:00:21]} Qg4 {[%emt 0:00:51]} 29. Rxe8+ {[%emt 0:00:59]} Rxe8 {[%emt 0:00:01]} 30. Qd2 {[%emt 0:00:14]} h6 {[%emt 0:04:56]} 31. Nxa7 {[%emt 0:05:09]} Bg2 {[%emt 0:00:45]} 32. Qd7 {[%emt 0:00:58]} Re6 {[%emt 0:00:02]} 33. Qd8+ {[%emt 0:00:59]} Kh7 {[%emt 0:00:09]} 34. Qd3+ {[%emt 0:00:43]} g6 {[%emt 0:00:33]} 35. Qd7 {[%emt 0:00:57]} Kg7 {[%emt 0:00:02]} 36. f5 {[%emt 0:00:28]} Qh3 {[%emt 0:01:09]} 37. f6+ {[%emt 0:00:15]} Kg8 {[%emt 0:00:03]} 0-1